Cogmind - Beta 12 @@@ ROGUE MODE // 2023.05.21 @ 23:27:09 Player: gauge Result: Destroyed by as-43845 with Assembled F-torch Performance ------------- Evolutions (0) 0 Regions Visited (3) 600 Robots Destroyed (16) 80 Value Destroyed (303) 303 Prototype IDs (0) 0 Alien Tech Used (0) 0 Bonus (0) 0 TOTAL SCORE: 983 Bonus ------- None Cogmind --------- Core Integrity 0/250 Matter 300/300 Energy 100/100 System Corruption 1% Temperature Cool (40) Movement Core (100) Ox1 Location -10/Exiles Parts ------- > --- POWER (1) -------- (None) > --- PROPULSION (2) --- (None) > --- UTILITY (2) ------ Structural Scanner > --- WEAPON (2) ------- Particle Cannon > --- INVENTORY (5) ---- Nuclear Core Light Fission Core EM Pulse Gun Autogun Autogun Peak State ------------ > --- POWER ------------ Light Ion Engine > --- PROPULSION ------- Aluminum Leg Aluminum Leg > --- UTILITY ---------- Improved Targeting Computer Improved Targeting Computer > --- WEAPON ----------- Autogun Autogun > --- INVENTORY -------- (None) [Rating: 11] Favorites ----------- Power Ion Engine Engine Ion Engine Propulsion Aluminum Leg Leg Aluminum Leg Wheel Wheel Flight Unit Flight Unit Utility Structural Scanner Device Structural Scanner Storage High-capacity Storage Unit Processor Improved Targeting Computer Weapon Autogun Energy Gun Medium Laser Energy Cannon Particle Cannon Ballistic Gun Autogun Build | -11 -10 -10 -10 ------- Run | Jun Mat Min Exi Slots Evolved . | . . . . Power . | . . . . Propulsion . | . . . . Utility . | . . . . Weapon . | . . . . Parts Attached 26 | 6 19 . 1 Power 5 | 1 3 . 1 Engine 5 | 1 3 . 1 Core . | . . . . Reactor . | . . . . Propulsion 7 | 2 5 . . Treads . | . . . . Leg 2 | 2 . . . Wheel 2 | . 2 . . Hover . | . . . . Flight 3 | . 3 . . Utility 8 | 1 7 . . Device 4 | 1 3 . . Storage 1 | . 1 . . Processor 3 | . 3 . . Hackware . | . . . . Protection . | . . . . Artifact . | . . . . Weapon 6 | 2 4 . . Energy Gun 2 | 2 . . . Energy Cannon 2 | . 2 . . Ballistic Gun 2 | . 2 . . Ballistic Cannon . | . . . . Launcher . | . . . . Special Weapon . | . . . . Impact Weapon . | . . . . Slashing Weapon . | . . . . Piercing Weapon . | . . . . Special Melee Weapon . | . . . . Unidentified Prototypes . | . . . . Parts Lost 4 | . . . 4 Power 1 | . . . 1 Propulsion 1 | . . . 1 Utility 1 | . . . 1 Weapon 1 | . . . 1 Highest Loss Streak 4 | . . . 4 To Critical Strikes . | . . . . Average Slot Usage (%) 93 | . 97 92 84 Engine 13 | . 13 14 14 Leg 7 | . 12 . . Wheel 6 | . 2 21 13 Flight 8 | . 12 . . Device 11 | . 10 14 14 Processor 15 | . 17 14 13 Energy Cannon 13 | . 5 28 28 Ballistic Gun 14 | . 22 . . Naked Turns . | . . . . Heaviest Build 14 | 8 14 14 14 Greatest Support 26 | 20 26 20 10 Greatest Overweight (x) 1 | . 1 1 1 Average Overweight (x) . | . . . 1 Largest Inventory Capacity 20 | 5 20 5 5 Average Capacity 5 | 5 5 5 5 Most Carried 5 | 2 4 3 5 Average Carried 2 | . . 3 4 Final Capacity 5 | 5 5 5 5 Final Carried 5 | . 3 3 5 Class Distribution -------------------- 100% | Mutant Dominant Class ---------------- Mutant | -10/Materials Mutant | -10/Mines Mutant | -10/Exiles Resources | -11 -10 -10 -10 ----------- Run | Jun Mat Min Exi Matter Collected 648 | 237 411 . . Remotely 94 | . 94 . . Salvage Created 468 | 33 392 43 . Parts 41 | 5 32 4 . Haulers Intercepted 1 | . 1 . . Recyclers Shooed . | . . . . Parts Field Recycled . | . . . . Retrieved Matter . | . . . . Parts Self-Destructed . | . . . . Prevented . | . . . . Kills | -11 -10 -10 -10 ------- Run | Jun Mat Min Exi Combat Hostiles Destroyed 11 | 1 7 3 . Guns 8 | 1 7 . . Cannons 3 | . . 3 . Classes Destroyed 5 | 1 4 . . Worker 2 | . 2 . . Hauler 1 | . 1 . . Watcher 2 | . 2 . . Swarmer 5 | . 2 3 . Grunt 6 | 1 5 . . Best Kill Streak 4 | 1 4 3 . Combat Bots Only 3 | 1 3 3 . Max Kills in Single Turn 1 | 1 1 1 . Gunslinging . | . . . . Exploded . | . . . . Melee . | . . . . Uniques/NPCs Destroyed . | . . . . Combat | -11 -10 -10 -10 -------- Run | Jun Mat Min Exi Damage Taken 756 | 12 331 56 357 Core 257 | 12 117 12 116 Absorbed by Shields . | . . . . Regen/Repaired (Parts) 29 | . 29 . . Core Remaining (%) 95 | 95 . . . Volleys Fired 35 | 2 28 5 . Largest 2 | 2 2 2 . Hottest 136 | 100 136 136 . Shots Fired 71 | 4 56 10 1 Gun 52 | 4 48 . . Cannon 19 | . 8 10 1 Launcher . | . . . . Special . | . . . . Kinetic 48 | . 48 . . Thermal 23 | 4 8 10 1 Explosive . | . . . . Electromagnetic . | . . . . Robot Hit Streak 12 | 3 12 2 . Robot Miss Streak 6 | . 4 6 1 Penetration Max . | . . . . Secondary Targets 1 | . 1 . . Max Gunslinging Chain 1 | . 1 . . Shots Hit Robots 43 | 3 38 2 . Core Hits 22 | 2 17 3 . Critical Kills . | . . . . Critical Parts Destroyed . | . . . . Critical Strikes . | . . . . Melee Attacks . | . . . . Impact . | . . . . Slashing . | . . . . Piercing . | . . . . Sneak Attacks . | . . . . Combat Hostiles . | . . . . Follow-up Attacks . | . . . . Damage Inflicted 798 | 37 698 63 . Guns 611 | 37 574 . . Cannons 187 | . 124 63 . Explosions . | . . . . Melee . | . . . . Ramming . | . . . . Kinetic 574 | . 574 . . Thermal 224 | 37 124 63 . Explosive . | . . . . Electromagnetic . | . . . . Impact . | . . . . Slashing . | . . . . Piercing . | . . . . Highest Corruption 1 | . 1 1 1 Average Corruption 1 | . 1 1 1 Corruption Purged . | . . . . Corruption Blocked . | . . . . Effects 9 | . 4 2 3 Message Errors 2 | . 1 1 . Matter Fused 2 | . 1 . 1 Heat Flow Errors 3 | . 1 1 1 Data Loss (minor) 1 | . 1 . . Misfires 1 | . . . 1 Overload Shots . | . . . . Overflow Damage . | . . . . Projectiles . | . . . . Explosions . | . . . . Melee . | . . . . Knockbacks . | . . . . Impact . | . . . . Kinetic . | . . . . Secondary . | . . . . Self-Inflicted Damage . | . . . . Shots . | . . . . Rammed . | . . . . Targets Rammed . | . . . . Kicked . | . . . . Crushed . | . . . . Highest Temperature 517 | 84 114 517 267 Average Temperature 92 | 45 24 240 104 Received Heat Transfer 273 | 6 87 . 180 Effects 6 | . . 3 3 Shutdowns 1 | . . 1 . Interference 3 | . . . 3 Short Circuit 1 | . . 1 . Damage (minor) 1 | . . 1 . Siege Activations . | . . . . Robots Corrupted . | . . . . Combat Hostiles . | . . . . Parts Fried . | . . . . Impact Corruptions . | . . . . Robots Melted . | . . . . Combat Hostiles . | . . . . Parts Melted 1 | . 1 . . Heat Transferred 444 | 111 222 111 . Parts Sabotaged . | . . . . Parts Stolen . | . . . . Parts Stripped . | . . . . Power Chain Reactions . | . . . . Missiles Intercepted . | . . . . Alert | -11 -10 -10 -10 ------- Run | Jun Mat Min Exi Peak Influence 135 | 20 135 81 . Initial 13 | . 13 11 . Average 63 | 2 67 74 . Maximum Alert Level . | . . . . Low Security (%) 100 | 100 100 100 . Level 1 . | . . . . Level 2 . | . . . . Level 3 . | . . . . Level 4 . | . . . . Level 5 . | . . . . High Security . | . . . . Max Security . | . . . . Squads Dispatched 1 | . 1 . . Investigation . | . . . . Extermination . | . . . . Reinforcement 1 | . 1 . . Assault . | . . . . Garrison . | . . . . Intercept . | . . . . Searches Triggered . | . . . . Construction Impeded . | . . . . Haulers Reinforced . | . . . . Active Scanning Responses . | . . . . Cargo Convoy Interrupts . | . . . . Stealth | -11 -10 -10 -10 --------- Run | Jun Mat Min Exi Distress Signals 2 | . 2 . . Communications Jammed . | . . . . Distress Signals . | . . . . Times Spotted 23 | 1 13 2 7 Peak Tracking Total 9 | 1 6 2 9 Tactical Retreats 1 | . 1 . . Traps | -11 -10 -10 -10 ------- Run | Jun Mat Min Exi Traps Triggered 2 | . 2 . . Indirectly . | . . . . Trap Hack Attempts . | . . . . Triggered . | . . . . Disarmed . | . . . . Reprogrammed . | . . . . Reused . | . . . . Traps Extracted . | . . . . Installed . | . . . . Triggered . | . . . . Machines | -11 -10 -10 -10 ---------- Run | Jun Mat Min Exi Machines Disabled 1 | . . . 1 Max in Single Turn 1 | . . . 1 Machines Repaired . | . . . . Machines Sabotaged . | . . . . Overloaded Fab Kills . | . . . . Hacking | -11 -10 -10 -10 --------- Run | Jun Mat Min Exi Machines Accessed 10 | . 6 1 3 Terminals 4 | . 3 1 . Fabricators . | . . . . Repair Stations 1 | . 1 . . Recycling Units 2 | . 2 . . Scanalyzers . | . . . . Garrison Access . | . . . . Total Hacks 65 | . 21 2 42 Successful 59 | . 16 1 42 Failed 6 | . 5 1 . Catastrophic . | . . . . Database Lockouts . | . . . . Manual . | . . . . Terminals 14 | . 12 2 . Fabricators . | . . . . Repair Stations 7 | . 7 . . Recycling Units 2 | . 2 . . Scanalyzers . | . . . . Garrison Access . | . . . . Terminal Hacks 51 | . 8 1 42 Record 44 | . 2 . 42 Robot Analysis 1 | . 1 . . Emergency Access Points 1 | . 1 . . Alert Level 2 | . 2 . . Locate Traps 1 | . 1 . . Dispatch Records 1 | . . 1 . Investigation Status 1 | . 1 . . Fabricator Hacks . | . . . . Repair Station Hacks 6 | . 6 . . Scan Component 3 | . 3 . . Repair 3 | . 3 . . Recycling Unit Hacks 2 | . 2 . . Report Inventory 2 | . 2 . . Scanalyzer . | . . . . Garrison Access Hacks . | . . . . Unauthorized Hacks . | . . . . Terminals . | . . . . Fabricators . | . . . . Repair Stations . | . . . . Recycling Units . | . . . . Scanalyzers . | . . . . Garrison Access . | . . . . Data Cores Recovered . | . . . . Used . | . . . . Hacking Detections 5 | . 4 1 . Full Trace Events 1 | . 1 . . Feedback Events 1 | . 1 . . Corruption 1 | . 1 . . Feedback Blocked . | . . . . Robot Schematics Acquired . | . . . . Robots Built . | . . . . Authchips . | . . . . Time . | . . . . Total Robot Build Rating . | . . . . Part Schematics Acquired . | . . . . Parts Built . | . . . . Authchips . | . . . . Time . | . . . . Total Part Build Rating . | . . . . Parts Repaired 3 | . 3 . . Time 78 | . 78 . . Parts Recycled . | . . . . Recycled Matter . | . . . . Retrieved Matter . | . . . . Retrieved Components . | . . . . Parts Scanalyzed . | . . . . Part Schematics Acquired . | . . . . Parts Damaged . | . . . . Bothacking | -11 -10 -10 -10 ------------ Run | Jun Mat Min Exi Used RIF Installer . | . . . . Robots Hacked . | . . . . Non-combat . | . . . . Combat . | . . . . Robot Hacks Applied . | . . . . Relay Couplers Released . | . . . . Fabnet Peak Effective % . | . . . . Robots Rewired . | . . . . Allies Hacked . | . . . . Hacks Repelled . | . . . . Allies | -11 -10 -10 -10 -------- Run | Jun Mat Min Exi Total Allies . | . . . . Largest Group . | . . . . Highest-Rated Group . | . . . . Highest-Rated Ally . | . . . . Total Orders . | . . . . Ally Attacks . | . . . . Total Damage . | . . . . Kills . | . . . . Allies Corrupted . | . . . . Allies Melted . | . . . . Intel | -11 -10 -10 -10 ------- Run | Jun Mat Min Exi Robot Analysis Total 1 | . 1 . . Derelict Logs Recovered . | . . . . Drone Launches . | . . . . Drone Recoveries . | . . . . Exploration | -11 -10 -10 -10 ------------- Run | Jun Mat Min Exi Turns Passed 1592 | 75 981 61 475 Spaces Moved 1253 | 61 685 20 487 Core 22 | 22 . . . Treads . | . . . . Legs 329 | 39 290 . . Wheels 614 | . 107 20 487 Hover . | . . . . Flight 288 | . 288 . . Fastest Speed 37 | 50 37 80 95 Average Speed 101 | 94 107 93 95 Slowest Speed 120 | 120 120 95 95 Overloaded Moves . | . . . . Propulsion Burnouts . | . . . . Robots Hopped . | . . . . Cave-ins Triggered . | . . . . Exploration Rate (%) 49 | 6 93 7 91 Regions Visited 3 Branch Regions 2 Pre-discovered Areas 1 | . . . 1 Known Exits Taken . | . . . . Unknown Exits Taken 3 | 1 1 1 . Scrap Searched . | . . . . Spaces Dug . | . . . . Terrain Destroyed . | . . . . Melee . | . . . . Projectile . | . . . . AOE . | . . . . Terrain Rammed . | . . . . Walls Destroyed . | . . . . Machines Disabled . | . . . . Actions | -11 -10 -10 -10 --------- Run | Jun Mat Min Exi Total 1510 | 74 884 52 500 Wait 156 | . 120 27 9 Move 1250 | 60 684 19 487 Hop . | . . . . Pick Up 28 | 6 20 . 2 Fast Attach . | . . . . Attach 17 | 6 10 . 1 Detach 3 | . 2 . 1 Swap 9 | . 9 . . Drop 12 | . 11 1 . Fire 35 | 2 28 5 . Melee . | . . . . Ram . | . . . . Kick . | . . . . Crush . | . . . . Escape Stasis . | . . . . Rewire . | . . . . Trap . | . . . . Miscellaneous . | . . . . Route ------- -11/Junkyard -10/Materials (discovered 4 exits: [*Mat x3] / *Min) -10/Mines -10/Exiles (discovered 1 exit: [*Min]) History --------- Turn | Location | Event 2 | -11/Junkyard | Met Revision 17 55 | -11/Junkyard | Discovered new exit (range 8) 76 | -11/Junkyard | Entered Materials 256 | -10/Materials | Discovered new exit (range 8) 313 | -10/Materials | Build established: Mutant 524 | -10/Materials | Repaired Ion Engine 550 | -10/Materials | Repaired Flight Unit 579 | -10/Materials | Repaired Ion Engine 647 | -10/Materials | Discovered new exit (range 12) 983 | -10/Materials | Core integrity fell below 50% 1002 | -10/Materials | Discovered new exit (range 12) 1044 | -10/Materials | Discovered new exit (range 7) 1057 | -10/Materials | Entered Mines 1112 | -10/Mines | Deemed a non-threat by the Exiles lab entrance 1112 | -10/Mines | Discovered new exit (range 6) 1118 | -10/Mines | Entered Exiles 1151 | -10/Exiles | Met 8R-AWN 1172 | -10/Exiles | Met EX-HEX 1220 | -10/Exiles | Met EX-DEC 1255 | -10/Exiles | Learned location of Zion (-7) 1300 | -10/Exiles | Discovered new exit (range 14) 1363 | -10/Exiles | Visited The Gauntlet 1484 | -10/Exiles | Met EX-BIN 1571 | -10/Exiles | Attacked by the Exiles 1593 | -10/Exiles | Destroyed by as-43845 with Assembled F-torch Last Messages --------------- mostly works now, and DEC has since been experimenting with other models as well. >>Record! "DEC-098/Firepult" HEX: 0b10 bots are notoriously weak to regular old fire, but I think it's time we started looking into something better than flamers as a delivery system. ** DEC: I'm with you on that! The Firepult is just the beginning. >>Record! "DEC-099/Infernogeddon Engine" [REDACTED] ** HEX: No. System corrupted: FCS attempts to trigger Particle Cannon. System corrupted: Particle Cannon misfires. EXILES: Hostile robot within lab perimeter. Defensive protocols time, folks! FarCom Aligner disabled. EX-BIN: "I just want to science!" Targeting Computer destroyed. Wheel destroyed. Machine disabled. Ion Engine destroyed. Particle Cannon destroyed. Map ----- +----------------------------------------------------+ | ??????????????????????## ## """##??????????? | | ??????????????????????## X""##??????????? | | ??????????????########## ## """##??????????? | | ??????????????########## ##""""""##??????????? | | ??????????????##""""""## ##########??????????? | | ??????????????##"""" ## ##########??????????? | | ??????????????##""X" ##??????????????????? | | ??????????????##" ##??????????????????? | | ??????????????##" ## #########???????????? | | ??????????????##""""""## #########???????????? | | ??????????????###"###### ###"""""""##????????? | | ?????????????? "###### ###"""""""##????????? | | ????????????##""" ???### ###"""""""##????????? | | ????????????##""" ???### ###"" """"##????????? | | ????????????##""" #??##" """"##????????? | | ???????????????####??##" ""##????????? | | ???????????????####??##" """##????????? | | ???????#########?????##" """##????????? | | ??????##########?????##" """## ???????? | | ??????## """##?????##" """## ???????? | | ??????##"" """##?????### """""" ??????? | | ??????##"" ##?????### """####??????? | | ??????##"" ##??????##" "X" """"" ??????? | | ??????##"" "##??????##" """ # "???????? | | ??????## ""##?????###"aa """""""""# ????????? | | ??????##"" ""##????####"@ ########### ????????? | | #####?#### ###########" a ############????????? | | ########## ##########"" a ###?????????????????? | | """#####X# #"###""""""" a ####??##########????? | | """""" " "" aa #################??? | | "" """ " #####"""""""""####? | | " " " """ """"###? | | "" " ##? | | " """##? | | " "### | | # " "### | | ##" ""## | | ##""" """""" """ | | ##" ######""" " | | #"" ""###########""" | | #""" """####???######""" | | """ """####???????###"""" | | """ ""##############"" | | "" ##############"""" | | """ ## ####""" | | "" """" | | #"" | | #"""" | | ## " | | ##" " "" """ " | +----------------------------------------------------+ Best States ------------- Heat Dissipation 35 Energy Generation 10 Energy Capacity 250 Matter Stores 300 Matter Capacity 300 Sight Range 16 Terrain Scan Density 10 Additional Mass Support 6 Evasion (%) 62 Targeting Accuracy 12 Item Schematics ----------------- None Robot Schematics ------------------ None Fabricated ------------ Nothing Alien Tech Used ----------------- None Achievements -------------- Librarian Challenges ------------ None Game ------ Seed FieldLayeredRedistributor Manual? 0 Play Time 00:49:33 Cumulative 3.2 hours Start 2023.05.21 @ 22:20:48 End 2023.05.21 @ 23:27:09 Sessions 1 Manual Loads 0 Difficulty Rogue Special Mode None Game No. 8 Rogue 8 Adventurer 0 Explorer 0 Win Type - Total 0 Types 0/0/0/0/0/0/0/0/0 Lore% 9 Gallery% 5 Achievement% 3 Wizard Run 0 Options --------- ASCII 0 Keyboard 0 Movement Mouse Keybinds 0 Fullscreen 1 Font 20/Cased Map View 66x50 Tactical HUD 0 Map Filters NONE Filters NONE Steam 1 RUN: ae02a23a-b760-4ad2-9d31-eed8c2e6d43c